{"text_format":"3","workbook":"xlsx","n_sheets":2,"sheets":["ПОЧАТОК","РІЧНИЙ ТАБЕЛЬ ОБЛІКУ ЧАСУ"],"not_rendered":{"defined_names":2},"read":"whole","date_system":"1900"}

{"sheet":"ПОЧАТОК","index":0,"n_rows":8,"n_cols":2,"rows_kept":8}
[null,"ПРО ЦЕЙ ШАБЛОН"]
[null,"Відстежуйте робочий час, відпрацьований за день, тиждень, місяць або рік, за допомогою цієї картка обліку часу працівника."]
[null,"Заповніть основні відомості, як-от ім’я працівника, ім’я керівника, адреса електронної пошти й номер телефону. "]
[null,"Додавайте години до таблиці для кожного місяця. Фіксуйте планові й понаднормові години в окремому стовпці для кожного дня тижня. "]
[null,"Загальна кількість відпрацьованих годин та кількість планових і понаднормових годин обчислюються автоматично. "]
[null,"Примітки."]
[null,"Додаткові вказівки наведено в стовпці A на аркуші \"РІЧНИЙ ТАБЕЛЬ ОБЛІКУ ЧАСУ\". Цей текст приховано навмисно. Щоб вилучити текст, виберіть стовпець A й натисніть клавішу Delete. Щоб відобразити текст, виберіть стовпець A та змініть колір шрифту. "]
[null,"Щоб дізнатися більше про таблиці, натисніть клавіші Shift+F10 у таблиці, виберіть \"Таблиця\" а потім – \"Текст заміщення\"."]

{"sheet":"РІЧНИЙ ТАБЕЛЬ ОБЛІКУ ЧАСУ","index":1,"n_rows":132,"n_cols":15,"rows_kept":132,"merged":[[0,1,0,2],[0,4,0,14],[10,6,10,7],[21,6,21,7],[32,6,32,7],[33,4,33,14],[43,6,43,7],[54,6,54,7],[65,6,65,7],[66,4,66,14],[76,6,76,7],[87,6,87,7],[98,6,98,7],[99,4,99,14],[109,6,109,7],[120,6,120,7],[131,6,131,7]]}
["Створіть денний, тижневий, місячний або річний табель працівника на цьому аркуші. \nКорисні вказівки з використання цієї книги наведено в клітинках цього стовпця. Клацніть стрілку вниз, щоб почати.\nЗаголовок цього аркуша наведено в клітинці праворуч, а заголовок кварталу \"Січень, лютий, березень\" – у клітинці E1.","КАРТКА ОБЛІКУ ЧАСУ\nПРАЦІВНИКА",null,null,"Січень, лютий, березень      картка обліку часу працівника: за день, за тиждень, за місяць, за рік"]
["Введіть ім’я працівника в клітинку C2, а планові й понаднормові години – у таблицю за січень, починаючи з клітинки E2.","Ім’я працівника:",null,null,"Січень","Тиждень 1","Понаднормові","Тиждень 2","Понаднормові  ","Тиждень 3","Понаднормові   ","Тиждень 4","Понаднормові    ","Тиждень 5","Понаднормові     "]
["Введіть ім’я керівника в клітинку C3.","Керівник:",null,null,"Понеділок",{"v":8,"d":"8.0"}]
["Введіть адресу електронної пошти в клітинку C4.","Електронна пошта:",null,null,"Вівторок",{"v":8,"d":"8.0"},{"v":2,"d":"2.0"}]
["Введіть номер телефону в клітинку C5. Подальші вказівки наведено в клітинці A9.","Телефон:",null,null,"Середа"]
[{"$nulls":4},"Четвер"]
[{"$nulls":4},"П’ятниця"]
[{"$nulls":4},"Субота"]
["Кількість планових годин за рік автоматично обчислюється в клітинці C9.","Планові години:",{"$f":"ПлановіГод","v":31},null,"Неділя"]
["Кількість понаднормових годин за рік автоматично обчислюється в клітинці C10.","Понаднормові години:",{"$f":"Понаднормові_год","v":4},null,"Усього годин за тиждень",{"$f":"SUM(F3:F9)","v":{"v":16,"d":"16.0"}},{"v":2,"d":"2.0"},{"v":0,"d":"0.0"},{"v":0,"d":"0.0"},{"v":0,"d":"0.0"},{"v":0,"d":"0.0"},{"v":0,"d":"0.0"},{"v":0,"d":"0.0"},{"v":0,"d":"0.0"},{"v":0,"d":"0.0"}]
["Загальна кількість годин за рік автоматично обчислюється в клітинці C11. Планові години за січень, наведені в клітинці F11, і понаднормові години за січень, наведені в клітинці I11, обчислюються автоматично. Подальші вказівки наведено в клітинці A13.","Усього",{"$f":"ПлановіГод+Понаднормові_год","v":35},null,{"$f":"TEXT(DATEVALUE(Січень[[#Headers],[Січень]]&\"  \"&YEAR(TODAY())),\"mmm.\")&\" усього: Планові\"","v":"Січ. усього: Планові"},{"$f":"SUM(Січень[Тиждень 1],Січень[Тиждень 2],Січень[Тиждень 3],Січень[Тиждень 4],Січень[Тиждень 5])","v":{"v":16,"d":"16.0"}},{"$f":"TEXT(DATEVALUE(Січень[[#Headers],[Січень]]&\"  \"&YEAR(TODAY())),\"mmm.\")&\" усього: Понаднормові\"","v":"Січ. усього: Понаднормові"},null,{"$f":"SUM(Січень[Понаднормові],Січень[[Понаднормові  ]],Січень[[Понаднормові   ]],Січень[[Понаднормові    ]],Січень[[Понаднормові     ]])","v":{"v":2,"d":"2.0"}}]
[]
["Введіть кількість планових і понаднормових годин у таблицю за лютий, починаючи з клітинки E13. Подальші вказівки наведено в клітинці A22.",{"$nulls":3},"Лютий","Тиждень 1","Понаднормові","Тиждень 2","Понаднормові  ","Тиждень 3","Понаднормові   ","Тиждень 4","Понаднормові    ","Тиждень 5","Понаднормові     "]
[{"$nulls":4},"Понеділок",{"v":8,"d":"8.0"}]
[{"$nulls":4},"Вівторок",{"v":7,"d":"7.0"},{"v":2,"d":"2.0"}]
[{"$nulls":4},"Середа"]
[{"$nulls":4},"Четвер"]
[{"$nulls":4},"П’ятниця"]
[{"$nulls":4},"Субота"]
[{"$nulls":4},"Неділя"]
[{"$nulls":4},"Усього годин за тиждень",{"$f":"SUM(F14:F20)","v":{"v":15,"d":"15.0"}},{"v":2,"d":"2.0"},{"v":0,"d":"0.0"},{"v":0,"d":"0.0"},{"v":0,"d":"0.0"},{"v":0,"d":"0.0"},{"v":0,"d":"0.0"},{"v":0,"d":"0.0"},{"v":0,"d":"0.0"},{"v":0,"d":"0.0"}]
["Планові години за лютий, наведені в клітинці F22, і понаднормові години за лютий, наведені в клітинці I22, обчислюються автоматично. Подальші вказівки наведено в клітинці A24.",{"$nulls":3},{"$f":"TEXT(DATEVALUE(Лютий[[#Headers],[Лютий]]&\"  \"&YEAR(TODAY())),\"mmm.\")&\" усього: Планові\"","v":"Лют. усього: Планові"},{"$f":"SUM(Лютий[Тиждень 1],Лютий[Тиждень 2],Лютий[Тиждень 3],Лютий[Тиждень 4],Лютий[Тиждень 5])","v":{"v":15,"d":"15.0"}},{"$f":"TEXT(DATEVALUE(Лютий[[#Headers],[Лютий]]&\" \"&YEAR(TODAY())),\"mmm.\")&\" усього: Понаднормові\"","v":"Лют. усього: Понаднормові"},null,{"$f":"SUM(Лютий[Понаднормові],Лютий[[Понаднормові  ]],Лютий[[Понаднормові   ]],Лютий[[Понаднормові    ]],Лютий[[Понаднормові     ]])","v":{"v":2,"d":"2.0"}}]
[]
["Введіть кількість планових і понаднормових годин у таблицю за березень, починаючи з клітинки E24. Подальші вказівки наведено в клітинці A33.",{"$nulls":3},"Березень","Тиждень 1","Понаднормові","Тиждень 2","Понаднормові ","Тиждень 3","Понаднормові  ","Тиждень 4","Понаднормові    ","Тиждень 5","Понаднормові     "]
[{"$nulls":4},"Понеділок"]
[{"$nulls":4},"Вівторок"]
[{"$nulls":4},"Середа"]
[{"$nulls":4},"Четвер"]
[{"$nulls":4},"П’ятниця"]
[{"$nulls":4},"Субота"]
[{"$nulls":4},"Неділя"]
[{"$nulls":4},"Усього годин за тиждень",{"$f":"SUM(F25:F31)","v":{"v":0,"d":"0.0"}},{"v":0,"d":"0.0"},{"v":0,"d":"0.0"},{"v":0,"d":"0.0"},{"v":0,"d":"0.0"},{"v":0,"d":"0.0"},{"v":0,"d":"0.0"},{"v":0,"d":"0.0"},{"v":0,"d":"0.0"},{"v":0,"d":"0.0"}]
["Планові години за березень, наведені в клітинці F33, і понаднормові години за березень, наведені в клітинці I33, обчислюються автоматично.",{"$nulls":3},{"$f":"TEXT(DATEVALUE(Березень[[#Headers],[Березень]]&\" \"&YEAR(TODAY())),\"mmm.\")&\" усього: Планові\"","v":"Бер. усього: Планові"},{"$f":"SUM(Березень[Тиждень 1],Березень[Тиждень 2],Березень[Тиждень 3],Березень[Тиждень 4],Березень[Тиждень 5])","v":{"v":0,"d":"0.0"}},{"$f":"TEXT(DATEVALUE(Березень[[#Headers],[Березень]]&\" \"&YEAR(TODAY())),\"mmm.\")&\" усього: Понаднормові\"","v":"Бер. усього: Понаднормові"},null,{"$f":"SUM(Березень[Понаднормові],Березень[[Понаднормові ]],Березень[[Понаднормові  ]],Березень[[Понаднормові    ]],Березень[[Понаднормові     ]])","v":{"v":0,"d":"0.0"}}]
["Заголовок II кварталу \"Квітень, травень, червень\" наведено в клітинці E34. ",{"$nulls":3},"Квітень, Травень, червень      картка обліку часу працівника: за день, за тиждень, за місяць, за рік"]
["Введіть кількість планових і понаднормових годин у таблицю за квітень, починаючи з клітинки E35. Подальші вказівки наведено в клітинці A44.",{"$nulls":3},"Квітень","Тиждень 1","Понаднормові","Тиждень 2","Понаднормові  ","Тиждень 3","Понаднормові   ","Тиждень 4","Понаднормові    ","Тиждень 5","Понаднормові     "]
[{"$nulls":4},"Понеділок"]
[{"$nulls":4},"Вівторок"]
[{"$nulls":4},"Середа"]
[{"$nulls":4},"Четвер"]
[{"$nulls":4},"П’ятниця"]
[{"$nulls":4},"Субота"]
[{"$nulls":4},"Неділя"]
[{"$nulls":4},"Усього годин за тиждень",{"$f":"SUM(F36:F42)","v":{"v":0,"d":"0.0"}},{"v":0,"d":"0.0"},{"v":0,"d":"0.0"},{"v":0,"d":"0.0"},{"v":0,"d":"0.0"},{"v":0,"d":"0.0"},{"v":0,"d":"0.0"},{"v":0,"d":"0.0"},{"v":0,"d":"0.0"},{"v":0,"d":"0.0"}]
["Планові години за квітень, наведені в клітинці F44, і понаднормові години за квітень, наведені в клітинці I44, обчислюються автоматично. Подальші вказівки наведено в клітинці A46.",{"$nulls":3},{"$f":"TEXT(DATEVALUE(Квітень[[#Headers],[Квітень]]&\" \"&YEAR(TODAY())),\"mmm.\")&\" усього: Планові\"","v":"Кві. усього: Планові"},{"$f":"SUM(Квітень[Тиждень 1],Квітень[Тиждень 2],Квітень[Тиждень 3],Квітень[Тиждень 4],Квітень[Тиждень 5])","v":{"v":0,"d":"0.0"}},{"$f":"TEXT(DATEVALUE(Квітень[[#Headers],[Квітень]]&\" \"&YEAR(TODAY())),\"mmm.\")&\" усього: Понаднормові\"","v":"Кві. усього: Понаднормові"},null,{"$f":"SUM(Квітень[Понаднормові],Квітень[[Понаднормові  ]],Квітень[[Понаднормові   ]],Квітень[[Понаднормові    ]],Квітень[[Понаднормові     ]])","v":{"v":0,"d":"0.0"}}]
[]
["Введіть кількість планових і понаднормових годин у таблицю за травень, починаючи з клітинки E46. Подальші вказівки наведено в клітинці A55.",{"$nulls":3},"Травень","Тиждень 1","Понаднормові","Тиждень 2","Понаднормові  ","Тиждень 3","Понаднормові   ","Тиждень 4","Понаднормові    ","Тиждень 5","Понаднормові     "]
[{"$nulls":4},"Понеділок"]
[{"$nulls":4},"Вівторок"]
[{"$nulls":4},"Середа"]
[{"$nulls":4},"Четвер"]
[{"$nulls":4},"П’ятниця"]
[{"$nulls":4},"Субота"]
[{"$nulls":4},"Неділя"]
[{"$nulls":4},"Усього годин за тиждень",{"$f":"SUM(F47:F53)","v":{"v":0,"d":"0.0"}},{"v":0,"d":"0.0"},{"v":0,"d":"0.0"},{"v":0,"d":"0.0"},{"v":0,"d":"0.0"},{"v":0,"d":"0.0"},{"v":0,"d":"0.0"},{"v":0,"d":"0.0"},{"v":0,"d":"0.0"},{"v":0,"d":"0.0"}]
["Планові години за травень, наведені в клітинці F55, і понаднормові години за травень, наведені в клітинці I55, обчислюються автоматично. Подальші вказівки наведено в клітинці A57.",{"$nulls":3},{"$f":"TEXT(DATEVALUE(Травень[[#Headers],[Травень]]&\" \"&YEAR(TODAY())),\"mmm.\")&\" усього: Планові\"","v":"Тра. усього: Планові"},{"$f":"SUM(Травень[Тиждень 1],Травень[Тиждень 2],Травень[Тиждень 3],Травень[Тиждень 4],Травень[Тиждень 5])","v":{"v":0,"d":"0.0"}},{"$f":"TEXT(DATEVALUE(Травень[[#Headers],[Травень]]&\" \"&YEAR(TODAY())),\"mmm.\")&\" усього: Понаднормові\"","v":"Тра. усього: Понаднормові"},null,{"$f":"SUM(Травень[Понаднормові],Травень[[Понаднормові  ]],Травень[[Понаднормові   ]],Травень[[Понаднормові    ]],Травень[[Понаднормові     ]])","v":{"v":0,"d":"0.0"}}]
[]
["Введіть кількість планових і понаднормових годин у таблицю за червень, починаючи з клітинки E57. Подальші вказівки наведено в клітинці A66.",{"$nulls":3},"Червень","Тиждень 1","Понаднормові","Тиждень 2","Понаднормові  ","Тиждень 3","Понаднормові   ","Тиждень 4","Понаднормові    ","Тиждень 5","Понаднормові     "]
[{"$nulls":4},"Понеділок"]
[{"$nulls":4},"Вівторок"]
[{"$nulls":4},"Середа"]
[{"$nulls":4},"Четвер"]
[{"$nulls":4},"П’ятниця"]
[{"$nulls":4},"Субота"]
[{"$nulls":4},"Неділя"]
[{"$nulls":4},"Усього годин за тиждень",{"$f":"SUM(F58:F64)","v":{"v":0,"d":"0.0"}},{"v":0,"d":"0.0"},{"v":0,"d":"0.0"},{"v":0,"d":"0.0"},{"v":0,"d":"0.0"},{"v":0,"d":"0.0"},{"v":0,"d":"0.0"},{"v":0,"d":"0.0"},{"v":0,"d":"0.0"},{"v":0,"d":"0.0"}]
["Планові години за червень, наведені в клітинці F66, і понаднормові години за червень, наведені в клітинці I66, обчислюються автоматично.",{"$nulls":3},{"$f":"TEXT(DATEVALUE(Червень[[#Headers],[Червень]]&\" \"&YEAR(TODAY())),\"mmm.\")&\" усього: Планові\"","v":"Чер. усього: Планові"},{"$f":"SUM(Червень[Тиждень 1],Червень[Тиждень 2],Червень[Тиждень 3],Червень[Тиждень 4],Червень[Тиждень 5])","v":{"v":0,"d":"0.0"}},{"$f":"TEXT(DATEVALUE(Червень[[#Headers],[Червень]]&\" \"&YEAR(TODAY())),\"mmm.\")&\" усього: Понаднормові\"","v":"Чер. усього: Понаднормові"},null,{"$f":"SUM(Червень[Понаднормові],Червень[[Понаднормові  ]],Червень[[Понаднормові   ]],Червень[[Понаднормові    ]],Червень[[Понаднормові     ]])","v":{"v":0,"d":"0.0"}}]
["Заголовок III кварталу \"Липень, серпень, вересень\" наведено в клітинці E67. ",{"$nulls":3},"Липень, серпень, вересень      картка обліку часу працівника: за день, за тиждень, за місяць, за рік"]
["Введіть кількість планових і понаднормових годин у таблицю за липень, починаючи з клітинки E68. Подальші вказівки наведено в клітинці A77.",{"$nulls":3},"Липень","Тиждень 1","Понаднормові","Тиждень 2","Понаднормові ","Тиждень 3","Понаднормові  ","Тиждень 4","Понаднормові   ","Тиждень 5","Понаднормові     "]
[{"$nulls":4},"Понеділок"]
[{"$nulls":4},"Вівторок"]
[{"$nulls":4},"Середа"]
[{"$nulls":4},"Четвер"]
[{"$nulls":4},"П’ятниця"]
[{"$nulls":4},"Субота"]
[{"$nulls":4},"Неділя"]
[{"$nulls":4},"Усього годин за тиждень",{"$f":"SUM(F69:F75)","v":{"v":0,"d":"0.0"}},{"v":0,"d":"0.0"},{"v":0,"d":"0.0"},{"v":0,"d":"0.0"},{"v":0,"d":"0.0"},{"v":0,"d":"0.0"},{"v":0,"d":"0.0"},{"v":0,"d":"0.0"},{"v":0,"d":"0.0"},{"v":0,"d":"0.0"}]
["Планові години за липень, наведені в клітинці F77, і понаднормові години за липень, наведені в клітинці I77, обчислюються автоматично. Подальші вказівки наведено в клітинці A79.",{"$nulls":3},{"$f":"TEXT(DATEVALUE(Липень[[#Headers],[Липень]]&\" \"&YEAR(TODAY())),\"mmm.\")&\" усього: Планові\"","v":"Лип. усього: Планові"},{"$f":"SUM(Липень[Тиждень 1],Липень[Тиждень 2],Липень[Тиждень 3],Липень[Тиждень 4],Липень[Тиждень 5])","v":{"v":0,"d":"0.0"}},{"$f":"TEXT(DATEVALUE(Липень[[#Headers],[Липень]]&\" \"&YEAR(TODAY())),\"mmm.\")&\" усього: Понаднормові\"","v":"Лип. усього: Понаднормові"},null,{"$f":"SUM(Липень[Понаднормові],Липень[[Понаднормові ]],Липень[[Понаднормові  ]],Липень[[Понаднормові   ]],Липень[[Понаднормові     ]])","v":{"v":0,"d":"0.0"}}]
[]
["Введіть кількість планових і понаднормових годин у таблицю за серпень, починаючи з клітинки E79. Подальші вказівки наведено в клітинці A88.",{"$nulls":3},"Серпень","Тиждень 1","Понаднормові","Тиждень 2","Понаднормові ","Тиждень 3","Понаднормові   ","Тиждень 4","Понаднормові  ","Тиждень 5","Понаднормові    "]
[{"$nulls":4},"Понеділок"]
[{"$nulls":4},"Вівторок"]
[{"$nulls":4},"Середа"]
[{"$nulls":4},"Четвер"]
[{"$nulls":4},"П’ятниця"]
[{"$nulls":4},"Субота"]
[{"$nulls":4},"Неділя"]
[{"$nulls":4},"Усього годин за тиждень",{"$f":"SUBTOTAL(109,Серпень[Тиждень 1])","v":{"v":0,"d":"0.0"}},{"$f":"SUBTOTAL(109,Серпень[Понаднормові])","v":{"v":0,"d":"0.0"}},{"$f":"SUBTOTAL(109,Серпень[Тиждень 2])","v":{"v":0,"d":"0.0"}},{"$f":"SUBTOTAL(109,Серпень[[Понаднормові ]])","v":{"v":0,"d":"0.0"}},{"$f":"SUBTOTAL(109,Серпень[Тиждень 3])","v":{"v":0,"d":"0.0"}},{"$f":"SUBTOTAL(109,Серпень[[Понаднормові   ]])","v":{"v":0,"d":"0.0"}},{"$f":"SUBTOTAL(109,Серпень[Тиждень 4])","v":{"v":0,"d":"0.0"}},{"$f":"SUBTOTAL(109,Серпень[[Понаднормові  ]])","v":{"v":0,"d":"0.0"}},{"$f":"SUBTOTAL(109,Серпень[Тиждень 5])","v":{"v":0,"d":"0.0"}},{"$f":"SUBTOTAL(109,Серпень[[Понаднормові    ]])","v":{"v":0,"d":"0.0"}}]
["Планові години за серпень, наведені в клітинці F88, і понаднормові години за серпень, наведені в клітинці I88, обчислюються автоматично. Подальші вказівки наведено в клітинці A90.",{"$nulls":3},{"$f":"TEXT(DATEVALUE(Серпень[[#Headers],[Серпень]]&\" \"&YEAR(TODAY())),\"mmm.\")&\" усього: Планові\"","v":"Сер. усього: Планові"},{"$f":"SUM(Серпень[Тиждень 1],Серпень[Тиждень 2],Серпень[Тиждень 3],Серпень[Тиждень 4],Серпень[Тиждень 5])","v":{"v":0,"d":"0.0"}},{"$f":"TEXT(DATEVALUE(Серпень[[#Headers],[Серпень]]&\" \"&YEAR(TODAY())),\"mmm.\")&\" усього: Понаднормові\"","v":"Сер. усього: Понаднормові"},null,{"$f":"SUM(Серпень[Понаднормові],Серпень[[Понаднормові ]],Серпень[[Понаднормові   ]],Серпень[[Понаднормові  ]],Серпень[[Понаднормові    ]])","v":{"v":0,"d":"0.0"}}]
[]
["Введіть кількість планових і понаднормових годин у таблицю за вересень, починаючи з клітинки E90. Подальші вказівки наведено в клітинці A99.",{"$nulls":3},"Вересень","Тиждень 1","Понаднормові","Тиждень 2","Понаднормові ","Тиждень 3","Понаднормові  ","Тиждень 4","Понаднормові   ","Тиждень 5","Понаднормові    "]
[{"$nulls":4},"Понеділок"]
[{"$nulls":4},"Вівторок"]
[{"$nulls":4},"Середа"]
[{"$nulls":4},"Четвер"]
[{"$nulls":4},"П’ятниця"]
[{"$nulls":4},"Субота"]
[{"$nulls":4},"Неділя"]
[{"$nulls":4},"Усього годин за тиждень",{"$f":"SUBTOTAL(109,Вересень[Тиждень 1])","v":{"v":0,"d":"0.0"}},{"$f":"SUBTOTAL(109,Вересень[Понаднормові])","v":{"v":0,"d":"0.0"}},{"$f":"SUBTOTAL(109,Вересень[Тиждень 2])","v":{"v":0,"d":"0.0"}},{"$f":"SUBTOTAL(109,Вересень[[Понаднормові ]])","v":{"v":0,"d":"0.0"}},{"$f":"SUBTOTAL(109,Вересень[Тиждень 3])","v":{"v":0,"d":"0.0"}},{"$f":"SUBTOTAL(109,Вересень[[Понаднормові  ]])","v":{"v":0,"d":"0.0"}},{"$f":"SUBTOTAL(109,Вересень[Тиждень 4])","v":{"v":0,"d":"0.0"}},{"$f":"SUBTOTAL(109,Вересень[[Понаднормові   ]])","v":{"v":0,"d":"0.0"}},{"$f":"SUBTOTAL(109,Вересень[Тиждень 5])","v":{"v":0,"d":"0.0"}},{"$f":"SUBTOTAL(109,Вересень[[Понаднормові    ]])","v":{"v":0,"d":"0.0"}}]
["Планові години за вересень, наведені в клітинці F99, і понаднормові години за вересень, наведені в клітинці I99, обчислюються автоматично.",{"$nulls":3},{"$f":"TEXT(DATEVALUE(Вересень[[#Headers],[Вересень]]&\" \"&YEAR(TODAY())),\"mmm.\")&\" усього: Планові\"","v":"Вер. усього: Планові"},{"$f":"SUM(Вересень[Тиждень 1],Вересень[Тиждень 2],Вересень[Тиждень 3],Вересень[Тиждень 4],Вересень[Тиждень 5])","v":{"v":0,"d":"0.0"}},{"$f":"TEXT(DATEVALUE(Вересень[[#Headers],[Вересень]]&\" \"&YEAR(TODAY())),\"mmm.\")&\" усього: Понаднормові\"","v":"Вер. усього: Понаднормові"},null,{"$f":"SUM(Вересень[Понаднормові],Вересень[[Понаднормові ]],Вересень[[Понаднормові  ]],Вересень[[Понаднормові   ]],Вересень[[Понаднормові    ]])","v":{"v":0,"d":"0.0"}}]
["Заголовок IV кварталу \"Жовтень, листопад, грудень\" наведено в клітинці E100. ",{"$nulls":3},"Жовтень, листопад, грудень      картка обліку часу працівника: за день, за тиждень, за місяць, за рік"]
["Введіть кількість планових і понаднормових годин у таблицю за жовтень, починаючи з клітинки E101. Подальші вказівки наведено в клітинці A110.",{"$nulls":3},"Жовтень","Тиждень 1","Понаднормові","Тиждень 2","Понаднормові ","Тиждень 3","Понаднормові  ","Тиждень 4","Понаднормові   ","Тиждень 5","Понаднормові    "]
[{"$nulls":4},"Понеділок"]
[{"$nulls":4},"Вівторок"]
[{"$nulls":4},"Середа"]
[{"$nulls":4},"Четвер"]
[{"$nulls":4},"П’ятниця"]
[{"$nulls":4},"Субота"]
[{"$nulls":4},"Неділя"]
[{"$nulls":4},"Усього годин за тиждень",{"$f":"SUBTOTAL(109,Жовтень[Тиждень 1])","v":{"v":0,"d":"0.0"}},{"$f":"SUBTOTAL(109,Жовтень[Понаднормові])","v":{"v":0,"d":"0.0"}},{"$f":"SUBTOTAL(109,Жовтень[Тиждень 2])","v":{"v":0,"d":"0.0"}},{"$f":"SUBTOTAL(109,Жовтень[[Понаднормові ]])","v":{"v":0,"d":"0.0"}},{"$f":"SUBTOTAL(109,Жовтень[Тиждень 3])","v":{"v":0,"d":"0.0"}},{"$f":"SUBTOTAL(109,Жовтень[[Понаднормові  ]])","v":{"v":0,"d":"0.0"}},{"$f":"SUBTOTAL(109,Жовтень[Тиждень 4])","v":{"v":0,"d":"0.0"}},{"$f":"SUBTOTAL(109,Жовтень[[Понаднормові   ]])","v":{"v":0,"d":"0.0"}},{"$f":"SUBTOTAL(109,Жовтень[Тиждень 5])","v":{"v":0,"d":"0.0"}},{"$f":"SUBTOTAL(109,Жовтень[[Понаднормові    ]])","v":{"v":0,"d":"0.0"}}]
["Планові години за жовтень, наведені в клітинці F110, і понаднормові години за жовтень, наведені в клітинці I110, обчислюються автоматично. Подальші вказівки наведено в клітинці A112.",{"$nulls":3},{"$f":"TEXT(DATEVALUE(Жовтень[[#Headers],[Жовтень]]&\" \"&YEAR(TODAY())),\"mmm.\")&\" усього: Планові\"","v":"Жов. усього: Планові"},{"$f":"SUM(Жовтень[Тиждень 1],Жовтень[Тиждень 2],Жовтень[Тиждень 3],Жовтень[Тиждень 4],Жовтень[Тиждень 5])","v":{"v":0,"d":"0.0"}},{"$f":"TEXT(DATEVALUE(Жовтень[[#Headers],[Жовтень]]&\" \"&YEAR(TODAY())),\"mmm.\")&\" усього: Понаднормові\"","v":"Жов. усього: Понаднормові"},null,{"$f":"SUM(Жовтень[Понаднормові],Жовтень[[Понаднормові ]],Жовтень[[Понаднормові  ]],Жовтень[[Понаднормові   ]],Жовтень[[Понаднормові    ]])","v":{"v":0,"d":"0.0"}}]
[]
["Введіть кількість планових і понаднормових годин у таблицю за листопад, починаючи з клітинки E112. Подальші вказівки наведено в клітинці A121.",{"$nulls":3},"Листопад","Тиждень 1","Понаднормові","Тиждень 2","Понаднормові ","Тиждень 3","Понаднормові  ","Тиждень 4","Понаднормові    ","Тиждень 5","Понаднормові     "]
[{"$nulls":4},"Понеділок"]
[{"$nulls":4},"Вівторок"]
[{"$nulls":4},"Середа"]
[{"$nulls":4},"Четвер"]
[{"$nulls":4},"П’ятниця"]
[{"$nulls":4},"Субота"]
[{"$nulls":4},"Неділя"]
[{"$nulls":4},"Усього годин за тиждень",{"$f":"SUBTOTAL(109,Листопад[Тиждень 1])","v":{"v":0,"d":"0.0"}},{"$f":"SUBTOTAL(109,Листопад[Понаднормові])","v":{"v":0,"d":"0.0"}},{"$f":"SUBTOTAL(109,Листопад[Тиждень 2])","v":{"v":0,"d":"0.0"}},{"$f":"SUBTOTAL(109,Листопад[[Понаднормові ]])","v":{"v":0,"d":"0.0"}},{"$f":"SUBTOTAL(109,Листопад[Тиждень 3])","v":{"v":0,"d":"0.0"}},{"$f":"SUBTOTAL(109,Листопад[[Понаднормові  ]])","v":{"v":0,"d":"0.0"}},{"$f":"SUBTOTAL(109,Листопад[Тиждень 4])","v":{"v":0,"d":"0.0"}},{"$f":"SUBTOTAL(109,Листопад[[Понаднормові    ]])","v":{"v":0,"d":"0.0"}},{"$f":"SUBTOTAL(109,Листопад[Тиждень 5])","v":{"v":0,"d":"0.0"}},{"$f":"SUBTOTAL(109,Листопад[[Понаднормові     ]])","v":{"v":0,"d":"0.0"}}]
["Планові години за листопад, наведені в клітинці F121, і понаднормові години за листопад, наведені в клітинці I121, обчислюються автоматично. Подальші вказівки наведено в клітинці A123.",{"$nulls":3},{"$f":"TEXT(DATEVALUE(Листопад[[#Headers],[Листопад]]&\" \"&YEAR(TODAY())),\"mmm.\")&\" усього: Планові\"","v":"Лис. усього: Планові"},{"$f":"SUM(Листопад[Тиждень 1],Листопад[Тиждень 2],Листопад[Тиждень 3],Листопад[Тиждень 4],Листопад[Тиждень 5])","v":{"v":0,"d":"0.0"}},{"$f":"TEXT(DATEVALUE(Листопад[[#Headers],[Листопад]]&\" \"&YEAR(TODAY())),\"mmm.\")&\" усього: Понаднормові\"","v":"Лис. усього: Понаднормові"},null,{"$f":"SUM(Листопад[Понаднормові],Листопад[[Понаднормові ]],Листопад[[Понаднормові  ]],Листопад[[Понаднормові    ]],Листопад[[Понаднормові     ]])","v":{"v":0,"d":"0.0"}}]
[]
["Введіть кількість планових і понаднормових годин у таблицю за грудень, починаючи з клітинки E123. Подальші вказівки наведено в клітинці A132.",{"$nulls":3},"Грудень","Тиждень 1","Понаднормові","Тиждень 2","Понаднормові ","Тиждень 3","Понаднормові  ","Тиждень 4","Понаднормові   ","Тиждень 5","Понаднормові    "]
[{"$nulls":4},"Понеділок"]
[{"$nulls":4},"Вівторок"]
[{"$nulls":4},"Середа"]
[{"$nulls":4},"Четвер"]
[{"$nulls":4},"П’ятниця"]
[{"$nulls":4},"Субота"]
[{"$nulls":4},"Неділя"]
[{"$nulls":4},"Усього годин за тиждень",{"$f":"SUBTOTAL(109,Грудень[Тиждень 1])","v":{"v":0,"d":"0.0"}},{"$f":"SUBTOTAL(109,Грудень[Понаднормові])","v":{"v":0,"d":"0.0"}},{"$f":"SUBTOTAL(109,Грудень[Тиждень 2])","v":{"v":0,"d":"0.0"}},{"$f":"SUBTOTAL(109,Грудень[[Понаднормові ]])","v":{"v":0,"d":"0.0"}},{"$f":"SUBTOTAL(109,Грудень[Тиждень 3])","v":{"v":0,"d":"0.0"}},{"$f":"SUBTOTAL(109,Грудень[[Понаднормові  ]])","v":{"v":0,"d":"0.0"}},{"$f":"SUBTOTAL(109,Грудень[Тиждень 4])","v":{"v":0,"d":"0.0"}},{"$f":"SUBTOTAL(109,Грудень[[Понаднормові   ]])","v":{"v":0,"d":"0.0"}},{"$f":"SUBTOTAL(109,Грудень[Тиждень 5])","v":{"v":0,"d":"0.0"}},{"$f":"SUBTOTAL(109,Грудень[[Понаднормові    ]])","v":{"v":0,"d":"0.0"}}]
["Планові години за грудень, наведені в клітинці F132, і понаднормові години за грудень, наведені в клітинці I132, обчислюються автоматично.",{"$nulls":3},{"$f":"TEXT(DATEVALUE(Грудень[[#Headers],[Грудень]]&\" \"&YEAR(TODAY())),\"mmm.\")&\" усього: Планові\"","v":"Гру. усього: Планові"},{"$f":"SUM(Грудень[Тиждень 1],Грудень[Тиждень 2],Грудень[Тиждень 3],Грудень[Тиждень 4],Грудень[Тиждень 5])","v":{"v":0,"d":"0.0"}},{"$f":"TEXT(DATEVALUE(Грудень[[#Headers],[Грудень]]&\" \"&YEAR(TODAY())),\"mmm.\")&\" усього: Понаднормові\"","v":"Гру. усього: Понаднормові"},null,{"$f":"SUM(G124:G130,I124:I130,K124:K130,M124:M130,O124:O130)","v":{"v":0,"d":"0.0"}}]